Cogmind - Beta 16.1 @@@ ROGUE MODE // 2026.04.13 @ 17:34:09 Player: Wulphy Result: Destroyed by 9N-8QP(R) with Subdweller Beam Cannon Performance ------------- Evolutions (0) 0 Regions Visited (2) 400 Robots Destroyed (22) 110 Value Destroyed (398) 398 Prototype IDs (0) 0 Alien Tech Used (0) 0 Bonus (0) 0 TOTAL SCORE: 908 Bonus ------- None Cogmind --------- Core Integrity 0/250 Matter 39/300 Energy 250/250 System Corruption 0% Temperature Cool (9) Movement Core (850) Ox16 Location -10/Subcaves Parts ------- > --- POWER (1) -------- Ion Engine > --- PROPULSION (2) --- Wheel > --- UTILITY (2) ------ High-capacity Storage Unit ECM Suite > --- WEAPON (2) ------- Light Assault Rifle Light Assault Rifle > --- INVENTORY (20) --- Light Nuclear Core Wheel Huge Storage Unit Seismic Detector Beam Cannon Light Assault Rifle Grenade Launcher Datajack Mining Laser Peak State ------------ > --- POWER ------------ Ion Engine > --- PROPULSION ------- Light Treads Wheel > --- UTILITY ---------- High-capacity Storage Unit Seismic Detector > --- WEAPON ----------- Assault Rifle Light Assault Rifle > --- INVENTORY -------- Light Treads Wheel Wheel Wheel Wheel Huge Storage Unit Light Armor Plating Light Assault Rifle Light Assault Rifle Grenade Launcher [Rating: 8] Favorites ----------- Power Ion Engine Engine Ion Engine Propulsion Light Treads Treads Light Treads Wheel Wheel Utility High-capacity Storage Unit Device Seismic Detector Storage High-capacity Storage Unit Protection Light Armor Plating Weapon Light Assault Rifle Energy Cannon Beam Cannon Ballistic Gun Light Assault Rifle Launcher Grenade Launcher Special Weapon Mining Laser Special Melee Weapon Datajack Build | -11 -10 -10 ------- Run | Yrd Mat Sub Slots Evolved . | . . . Power . | . . . Propulsion . | . . . Utility . | . . . Weapon . | . . . Parts Attached 20 | 7 8 5 Power 1 | 1 . . Engine 1 | 1 . . Core . | . . . Reactor . | . . . Propulsion 6 | 2 2 2 Treads 2 | 2 . . Leg . | . . . Wheel 4 | . 2 2 Hover . | . . . Flight . | . . . Utility 5 | 2 2 1 Device 2 | 1 . 1 Storage 2 | 1 1 . Processor . | . . . Hackware . | . . . Protection 1 | . 1 . Artifact . | . . . Weapon 8 | 2 4 2 Energy Gun . | . . . Energy Cannon 1 | . . 1 Ballistic Gun 4 | 2 1 1 Ballistic Cannon . | . . . Launcher 1 | . 1 . Special Weapon 1 | . 1 . Impact Weapon . | . . . Slashing Weapon . | . . . Piercing Weapon . | . . . Special Melee Weapon 1 | . 1 . Unidentified Prototypes . | . . . Parts Lost 7 | . 1 6 Power . | . . . Propulsion 5 | . 1 4 Utility 1 | . . 1 Weapon 1 | . . 1 Highest Loss Streak 4 | . 1 4 To Critical Strikes . | . . . Average Backups 9 | 4 10 12 Power . | . . 1 Propulsion 3 | 3 3 3 Utility 1 | . 1 2 Weapon 3 | . 3 4 Tool/Special . | . . . Unused Backups 6 | . 3 3 Power 2 | . 1 1 Propulsion 3 | . 2 1 Utility 1 | . . 1 Weapon . | . . . Tool/Special . | . . . Average Slot Usage (%) 99 | . 100 98 Engine 14 | . 14 14 Treads 17 | . 19 14 Wheel 9 | . 8 13 Device 11 | . 11 10 Storage 14 | . 14 14 Protection 2 | . 2 1 Energy Cannon 2 | . . 10 Ballistic Gun 23 | . 26 15 Special Melee Weapon 1 | . 1 . Peak Build Rating 8 | 7 8 8 Average Rating 7 | 5 7 7 On Entrance 5 | . 7 8 Avg Prop Armor Cover (%) 12 | . 12 13 Naked Turns . | . . . Heaviest Build 53 | 13 50 53 Greatest Support 40 | 40 40 10 Greatest Overweight (x) 5 | . 4 5 Average Overweight (x) 2 | . 2 4 Largest Inventory Capacity 20 | 8 20 20 Average Capacity 16 | 7 16 20 Most Carried 14 | 7 14 14 Average Carried 9 | 4 10 12 Final Capacity 20 | 8 20 20 Final Carried 14 | 7 14 9 Class Distribution -------------------- 100% | Mutant Dominant Class ---------------- Mutant | -10/Materials Mutant | -10/Subcaves Resources | -11 -10 -10 ----------- Run | Yrd Mat Sub Matter Collected 610 | 298 312 . Remotely . | . . . Salvage Created 472 | 112 355 5 Parts 31 | 7 20 4 Haulers Intercepted . | . . . Recyclers Shooed 1 | 1 . . Parts Field Recycled . | . . . Retrieved Matter . | . . . Parts Self-Destructed 5 | . . 5 Prevented . | . . . Parts Restored . | . . . Kills | -11 -10 -10 ------- Run | Yrd Mat Sub Combat Hostiles Destroyed 16 | . 12 4 Guns 10 | . 10 . AOE 6 | . 2 4 Classes Destroyed 6 | 2 3 1 Worker 1 | . 1 . Tunneler 2 | 2 . . Recycler 1 | 1 . . Turret 2 | . . 2 Swarmer 10 | . 6 4 Grunt 6 | . 6 . Best Kill Streak 5 | 3 3 5 Combat Bots Only 4 | . 3 4 Max Kills in Single Turn 2 | 1 2 2 Gunslinging . | . . . Exploded 2 | . 2 2 Melee . | . . . Uniques/NPCs Destroyed . | . . . Combat | -11 -10 -10 -------- Run | Yrd Mat Sub Hostile Shots Fired 146 | . 52 94 Missed 54 | . 17 37 Hits 92 | . 35 57 Projectile 92 | . 35 57 Critical Strikes 2 | . 1 1 Damage Taken 1143 | . 381 762 Core 277 | . 48 229 Absorbed by Shields . | . . . Core Remaining (%) 100 | 100 . . Volleys Fired 78 | 14 35 29 Largest 2 | 2 2 2 Hottest 100 | 40 100 80 Shots Fired 147 | 28 67 52 Gun 124 | 28 64 32 Cannon 14 | . . 14 Launcher 7 | . 1 6 Special 2 | . 2 . Kinetic 124 | 28 64 32 Thermal 16 | . 2 14 Explosive 7 | . 1 6 Electromagnetic . | . . . Robot Hit Streak 17 | 8 17 16 Robot Miss Streak 4 | 2 3 4 Penetration Max . | . . . Secondary Targets 1 | . 1 . Max Gunslinging Chain 1 | . 1 . Shots Hit Robots 107 | 21 45 41 Core Hits 46 | 8 22 16 Critical Kills . | . . . Critical Parts Destroyed . | . . . Critical Strikes . | . . . Melee Attacks . | . . . Impact . | . . . Slashing . | . . . Piercing . | . . . Sneak Attacks . | . . . Combat Hostiles . | . . . Follow-up Attacks . | . . . Damage Inflicted 1463 | 157 564 742 Guns 839 | 157 462 220 Cannons 104 | . . 104 Explosions 520 | . 102 418 Melee . | . . . Ramming . | . . . Kinetic 839 | 157 462 220 Thermal 104 | . . 104 Explosive 520 | . 102 418 Electromagnetic . | . . . Impact . | . . . Slashing . | . . . Piercing . | . . . Highest Corruption . | . . . Average Corruption . | . . . Corruption Purged . | . . . Corruption Blocked . | . . . Overload Shots . | . . . Overflow Damage 15 | . . 15 Projectiles 15 | . . 15 Explosions . | . . . Melee . | . . . Knockbacks . | . . . Impact . | . . . Kinetic . | . . . Secondary . | . . . Self-Inflicted Damage . | . . . Shots . | . . . Rammed . | . . . Targets Rammed . | . . . Kicked . | . . . Crushed . | . . . Highest Temperature 278 | . 71 278 Average Temperature 27 | . 17 73 Received Heat Transfer 822 | . 177 645 Siege Activations . | . . . Martial Activations . | . . . Shielding Activations . | . . . Robots Disrupted . | . . . Combat Hostiles . | . . . Robots Corrupted . | . . . Combat Hostiles . | . . . Parts Fried . | . . . Impact Corruptions . | . . . Robots Melted . | . . . Combat Hostiles . | . . . Parts Melted . | . . . Heat Transferred 222 | . . 222 Parts Sabotaged . | . . . Parts Stolen . | . . . Parts Stripped . | . . . Power Chain Reactions . | . . . Alert | -11 -10 -10 ------- Run | Yrd Mat Sub Maximum Alert Level . | . . . Low Security (%) 100 | 100 100 . Level 1 . | . . . Level 2 . | . . . Level 3 . | . . . Level 4 . | . . . Level 5 . | . . . High Security . | . . . Max Security . | . . . Peak Influence 161 | 10 161 . Initial . | . . . Average 51 | 1 62 . Influence Increases 589 | 15 334 240 Destroy 0b10 Robot/C 360 | . 240 120 Destroy 0b10 Robot/NC 20 | 15 5 . Destroy Leader 50 | . 50 . Successful Hack 14 | . 14 . Destroy Structure 10 | . 10 . Partial Spotted 15 | . 15 . Lose Combat Pursuer 120 | . . 120 Influence Decreases 452 | 15 204 233 Entered New Map 63 | . . 63 Time Decay 319 | 15 194 110 Lost Part 70 | . 10 60 Squads Dispatched 2 | . 2 . Investigation . | . . . Extermination . | . . . Reinforcement 2 | . 2 . Assault . | . . . Garrison . | . . . Intercept . | . . . Searches Triggered . | . . . Construction Impeded . | . . . Haulers Reinforced . | . . . Active Scanning Responses . | . . . Cargo Convoy Interrupts . | . . . Stealth | -11 -10 -10 --------- Run | Yrd Mat Sub Distress Signals 3 | . 3 . Communications Jammed . | . . . Distress Signals . | . . . Times Spotted 28 | . 20 8 Peak Tracking Total 6 | . 4 6 Tactical Retreats 2 | . . 2 Traps | -11 -10 -10 ------- Run | Yrd Mat Sub Traps Triggered . | . . . Indirectly . | . . . Trap Hack Attempts 10 | . 10 . Triggered . | . . . Disarmed 2 | . 2 . Reprogrammed . | . . . Reused . | . . . Traps Extracted . | . . . Installed . | . . . Triggered . | . . . Machines | -11 -10 -10 ---------- Run | Yrd Mat Sub Machines Disabled 3 | . . 3 Max in Single Turn 1 | . . 1 Machines Repaired . | . . . Machines Dismantled . | . . . Machines Sabotaged . | . . . Overloaded Fab Kills . | . . . Hacking | -11 -10 -10 --------- Run | Yrd Mat Sub Machines Accessed 4 | . 4 . Terminals 4 | . 4 . Fabricators . | . . . Repair Stations . | . . . Recycling Units . | . . . Scanalyzers . | . . . Garrison Access . | . . . Total Hacks 10 | . 10 . Successful 6 | . 6 . Failed 4 | . 4 . Catastrophic . | . . . Database Lockouts . | . . . Manual 1 | . 1 . Terminals 10 | . 10 . Fabricators . | . . . Repair Stations . | . . . Recycling Units . | . . . Scanalyzers . | . . . Garrison Access . | . . . Terminal Hacks 6 | . 6 . Terminal Index 1 | . 1 . Locate Traps 2 | . 2 . Maintenance Status 1 | . 1 . Zone Layout 2 | . 2 . Fabricator Hacks . | . . . Repair Station Hacks . | . . . Recycling Unit Hacks . | . . . Scanalyzer . | . . . Garrison Access Hacks . | . . . Unauthorized Hacks . | . . . Terminals . | . . . Fabricators . | . . . Repair Stations . | . . . Recycling Units . | . . . Scanalyzers . | . . . Garrison Access . | . . . Data Cores Recovered . | . . . Used . | . . . Hacking Detections 3 | . 3 . Full Trace Events . | . . . Feedback Events . | . . . Feedback Blocked . | . . . Robot Schematics Acquired . | . . . Robots Built . | . . . Authchips . | . . . Time . | . . . Total Robot Build Rating . | . . . Part Schematics Acquired . | . . . Parts Built . | . . . Authchips . | . . . Time . | . . . Total Part Build Rating . | . . . Part Studies Acquired . | . . . Parts Repaired . | . . . Time . | . . . Parts Recycled . | . . . Recycled Matter . | . . . Retrieved Matter . | . . . Retrieved Components . | . . . Parts Scanalyzed . | . . . Part Schematics Acquired . | . . . Parts Damaged . | . . . Bothacking | -11 -10 -10 ------------ Run | Yrd Mat Sub Used RIF Installer . | . . . Robots Hacked . | . . . Non-combat . | . . . Combat . | . . . Robot Hacks Applied . | . . . Relay Couplers Released . | . . . Fabnet Peak Effective % . | . . . Robots Rewired . | . . . Allies Hacked . | . . . Hacks Repelled . | . . . Allies | -11 -10 -10 -------- Run | Yrd Mat Sub Total Allies . | . . . Largest Group . | . . . Highest-Rated Group . | . . . Highest-Rated Ally . | . . . Total Orders . | . . . Ally Attacks . | . . . Total Damage . | . . . Kills . | . . . Allies Corrupted . | . . . Allies Melted . | . . . Intel | -11 -10 -10 ------- Run | Yrd Mat Sub Active Infowar (turns) 669 | 35 502 132 Seismic 668 | 35 502 131 ECM 1 | . . 1 Robot Analysis Total . | . . . Derelict Logs Recovered . | . . . Drone Launches . | . . . Drone Recoveries . | . . . Exploration | -11 -10 -10 ------------- Run | Yrd Mat Sub Turns Passed 984 | 141 618 225 Spaces Moved 440 | 57 287 96 Core 3 | 3 . . Treads 140 | 54 86 . Legs . | . . . Wheels 297 | . 201 96 Hover . | . . . Flight . | . . . Fastest Speed 50 | 50 140 140 Average Speed 146 | 154 147 140 Slowest Speed 240 | 160 240 155 Overloaded Moves . | . . . Propulsion Burnouts . | . . . Robots Hopped . | . . . Potential Cave-ins . | . . . Cave-ins Triggered . | . . . Exploration Rate (%) 25 | 4 66 7 Regions Visited 2 Branch Regions 1 Pre-discovered Areas . | . . . Known Exits Taken . | . . . Unknown Exits Taken 2 | 1 1 . Scrap Searched . | . . . Spaces Dug 2 | . 2 . Terrain Destroyed 31 | . 9 22 Melee . | . . . Projectile 2 | . 2 . AOE 29 | . 7 22 Terrain Rammed . | . . . Walls Destroyed . | . . . Machines Disabled . | . . . Actions | -11 -10 -10 --------- Run | Yrd Mat Sub Total 633 | 84 411 138 Wait 40 | . 37 3 Move 438 | 56 286 96 Hop . | . . . Pick Up 19 | 7 12 . Fast Attach 7 | 7 . . Attach 6 | . 1 5 Detach . | . . . Swap 30 | . 25 5 Drop 5 | . 5 . Fire 78 | 14 35 29 Melee . | . . . Ram . | . . . Kick . | . . . Crush . | . . . Escape Stasis . | . . . Rewire . | . . . Trap 10 | . 10 . Miscellaneous . | . . . Route ------- -11/Scrapyard -10/Materials (discovered 4 exits: [*Mat x2] / [*Min] / [*Sub]) -10/Subcaves (discovered 1 exit: [*Rec]) History --------- Turn | Location | Event 2 | -11/Scrapyard | Met Revision 17 55 | -11/Scrapyard | Discovered new exit (range 13) 142 | -11/Scrapyard | Entered Materials 237 | -10/Materials | Discovered new exit (range 15) 307 | -10/Materials | Build established: Mutant 582 | -10/Materials | Discovered new exit (range 15) 638 | -10/Materials | Discovered new exit (range 4) 753 | -10/Materials | Discovered new exit (range 7) 760 | -10/Materials | Entered Subcaves 760 | -10/Subcaves | Discovered new exit (range 12) 949 | -10/Subcaves | Core integrity fell below 50% 972 | -10/Subcaves | Core integrity fell below 20% 985 | -10/Subcaves | Destroyed by 9N-8QP(R) with Subdweller Beam Cannon Last Messages --------------- repair. 00770_ Machine disabled. 00772_ S-10 Pest destroyed. 00776_ Flight Unit fries itself beyond repair. 00779_ The unstable cave ceiling collapses. 00784_ Lgt. Assault Rifle fries itself beyond repair. 00785_ Destroyed Autobeam. 00790_ Autobeam Turret destroyed. 00791_ The unstable cave ceiling collapses. 00798_ Lgt. Armor Plating destroyed. 00806_ Assault Rifle destroyed. 00810_ Destroyed Autobeam. 00813_ The unstable cave ceiling collapses. 00813_ Autobeam Turret destroyed. 00824_ The unstable cave ceiling collapses. 00944_ Lgt. Treads destroyed. 00952_ Critical hit (Meltdown: +300). 00956_ Wheel destroyed. 00983_ Lgt. Treads destroyed. Map ----- +----------------------------------------------------+ | ?????????????????????????????????????????????????? | | ?????????????????????????????????????????????????? | | ?????????????????????????????????????????????????? | | ?????????????????????????????????????????????????? | | ?????????????????????????????????????????????????? | | ?????????????????????????????????????????????????? | | ?????????????????????????????????????????????????? | | ?????????????????????????????????????????????????? | | ????????????????????? ?????????????????????????? | | ????????????????????? ?????????????????????????? | | ????????????????????? ?????????????????????????? | | ????????????????????? ?????????????????????????? | | ?????????????????????# #????????????????????????? | | ?????????????????????# ????????????????????????? | | ????????????????????## ?????###????????????????? | | ????????????????????? #????# #????????????????? | | ????????????????????? ???# #????????????????? | | ????????????# ???##?# ??# #????????????????? | | ????????????? ### ## ### #????????????????? | | ?????????????? ?????????????????? | | ???????????????? #??????????????????? | | ???????????????##?# #???????????????????? | | ???????????????#" ##" #???????????????????? | | ?????????????????# ##??????????????????? | | ?????????????????##"#" ##R ##?????????????????? | | ???????????????????## #;@ ##????????????????? | | ??????????????????## ## #????????????????? | | ??????????????????# #????????????????? | | ????????????????### ;# #????????????????? | | ?????????????#### # #???????????????? | | ????????????## ## # #???????????????? | | ????????????# ##?## # #???????????????? | | ????????????# ###??? ###???????????????? | | ????????????#### ##???## #????????????????? | | ??###??????????# #??## ##???????????????? | | ## ##?????????# ## #?## ##??????????????? | | ##?????#### ### ### ##?#???????????? | | #????## #?# # # # #???????????? | | ####????# ##?# #???????????? | | ##???????# ##??####### ## ##???????????? | | ##????????### ###???????##### # #???????????? | | ##????????### #??????????# # #???????????? | | ###?????## ##?????????#" ??????????? | | ####### #??????????# #?????????? | | ## #??????????# #?????????? | | ##??????????#" ##?????????? | | ## ##???????????#" #?????????? | | ####### ### ###????????????#"" ##?????????? | | ##?????###?###??????????????#### < # ##??????????? | | ????????????????????????????????#######??????????? | +----------------------------------------------------+ Best States ------------- Heat Dissipation 25 Energy Generation 10 Energy Capacity 250 Matter Stores 300 Matter Capacity 300 Sight Range 16 Terrain Scan Density 10 Armor Coverage 150 Evasion (%) 40 Recoil Reduction 2 Item Schematics ----------------- None Robot Schematics ------------------ None Fabricated ------------ Nothing Repaired ---------- Nothing Studied --------- None Alien Tech Used ----------------- None Achievements -------------- None Challenges ------------ None Game ------ Seed RapidUtilityBox Manual? 0 Play Time 00:15:51 Cumulative 480.2 hours Start 2026.04.13 @ 12:03:29 End 2026.04.13 @ 17:34:09 Sessions 6 Manual Loads 0 Difficulty Rogue Special Mode None Game No. 85 Rogue 85 Adventurer 0 Explorer 0 Win Type - Total 17 Types 7/1/5/1/1/0/1/1/0/0 Lore% 82 Gallery% 76 Achievement% 71 Wizard Run 0 Options --------- Layout 1 ASCII 0 Keyboard 1 Movement Vi Keybinds 1 Fullscreen 1 Font 36/Tamsyn Map View 50x40 Zoom Use 0% Tactical HUD 1 Map Filters NONE Filters NONE Steam 1 RUN: 43493e13-2070-4eba-8cfc-7f6b9ecc2407